[Event "Titled Tuesday Blitz December 06 Early 2022"]
[White "Muminova, Nafisa"]
[Black "Mendez Fortes, Eduardo Jesus"]
[WhiteFideId "14201526"]
[BlackFideId "3502376"]
[WhiteElo "2258"]
[BlackElo "2307"]
[Result "0-1"]
[Round "08"]
[TimeControl "180+1"]
[Date "2022.12.07"]
[WhiteClock "0:01:42"]
[BlackClock "0:01:35"]

1. e4 {[%clk 0:03:00]}  e5 {[%clk 0:02:57]} 2. Nf3 {[%clk 0:03:00]}  Nc6 {[%clk 0:02:57]} 3. d4 {[%clk 0:02:59]}  exd4 {[%clk 0:02:57]} 4. Nxd4 {[%clk 0:03:00]}  Nf6 {[%clk 0:02:58]} 5. Nxc6 {[%clk 0:03:00]}  bxc6 {[%clk 0:02:59]} 6. e5 {[%clk 0:02:59]}  Qe7 {[%clk 0:03:00]} 7. Qe2 {[%clk 0:02:59]}  Nd5 {[%clk 0:03:00]} 8. c4 {[%clk 0:03:00]}  Nb6 {[%clk 0:03:00]} 9. Nd2 {[%clk 0:02:56]}  a5 {[%clk 0:02:58]} 10. Nf3 {[%clk 0:02:55]}  Ba6 {[%clk 0:02:57]} 11. b3 {[%clk 0:02:55]}  a4 {[%clk 0:02:57]} 12. Qe4 {[%clk 0:02:45]}  d5 {[%clk 0:02:53]} 13. cxd5 {[%clk 0:02:34]}  Bxf1 {[%clk 0:02:36]} 14. Kxf1 {[%clk 0:02:27]}  cxd5 {[%clk 0:02:32]} 15. Qc2 {[%clk 0:02:26]}  axb3 {[%clk 0:02:31]} 16. Qxb3 {[%clk 0:02:23]}  Qc5 {[%clk 0:02:26]} 17. Be3 {[%clk 0:02:16]}  Qc4+ {[%clk 0:02:26]} 18. Qxc4 {[%clk 0:02:15]}  Nxc4 {[%clk 0:02:27]} 19. Ke2 {[%clk 0:02:15]}  Nxe3 {[%clk 0:02:24]} 20. Kxe3 {[%clk 0:02:14]}  Bc5+ {[%clk 0:02:23]} 21. Ke2 {[%clk 0:02:14]}  Kd7 {[%clk 0:02:15]} 22. a4 {[%clk 0:02:12]}  Rhb8 {[%clk 0:02:14]} 23. Rhd1 {[%clk 0:01:59]}  c6 {[%clk 0:02:11]} 24. Nd4 {[%clk 0:01:49]}  Rb2+ {[%clk 0:02:08]} 25. Ke3 {[%clk 0:01:48]}  Rb4 {[%clk 0:02:00]} 26. a5 {[%clk 0:01:48]}  Re8 {[%clk 0:01:47]} 27. f4 {[%clk 0:01:47]}  f6 {[%clk 0:01:48]} 28. Rac1 {[%clk 0:01:42]}  Ba7 {[%clk 0:01:36]} 29. Rb1 {[%clk 0:01:42]}  Bxd4+ {[%clk 0:01:35]} 0-1


[Site "https://www.chess.com"]

[Event "Titled Tuesday Blitz December 06 Early 2022"]
[White "Ohanyan, Emin"]
[Black "Andreikin, Dmitry"]
[WhiteFideId "13312022"]
[BlackFideId "4158814"]
[WhiteElo "2352"]
[BlackElo "2735"]
[Result "1-0"]
[Round "08"]
[TimeControl "180+1"]
[Date "2022.12.06"]
[WhiteClock "0:00:36"]
[BlackClock "0:00:22"]

1. e4 {[%clk 0:03:00]}  c5 {[%clk 0:02:56]} 2. Nf3 {[%clk 0:02:58]}  e6 {[%clk 0:02:55]} 3. d4 {[%clk 0:02:59]}  cxd4 {[%clk 0:02:56]} 4. Nxd4 {[%clk 0:02:59]}  Nc6 {[%clk 0:02:56]} 5. Nc3 {[%clk 0:03:00]}  Qc7 {[%clk 0:02:57]} 6. Ndb5 {[%clk 0:03:00]}  Qb8 {[%clk 0:02:56]} 7. Be3 {[%clk 0:03:01]}  a6 {[%clk 0:02:57]} 8. Bb6 {[%clk 0:03:01]}  axb5 {[%clk 0:02:55]} 9. Nxb5 {[%clk 0:03:02]}  Bb4+ {[%clk 0:02:55]} 10. c3 {[%clk 0:03:03]}  Ba5 {[%clk 0:02:53]} 11. Nd6+ {[%clk 0:03:04]}  Qxd6 {[%clk 0:02:53]} 12. Qxd6 {[%clk 0:03:05]}  Bxb6 {[%clk 0:02:53]} 13. a4 {[%clk 0:02:52]}  Nf6 {[%clk 0:02:33]} 14. Bd3 {[%clk 0:02:48]}  Ba7 {[%clk 0:02:32]} 15. b4 {[%clk 0:02:25]}  Ng4 {[%clk 0:02:18]} 16. O-O {[%clk 0:02:11]}  Bb8 {[%clk 0:02:16]} 17. Qc5 {[%clk 0:02:11]}  Nxh2 {[%clk 0:01:55]} 18. b5 {[%clk 0:02:02]}  Ne5 {[%clk 0:01:46]} 19. Qxc8+ {[%clk 0:01:52]}  Ke7 {[%clk 0:01:43]} 20. Qxh8 {[%clk 0:01:53]}  Nxd3 {[%clk 0:01:33]} 21. Qc8 {[%clk 0:00:45]}  Ng4 {[%clk 0:01:04]} 22. g3 {[%clk 0:00:46]}  Bxg3 {[%clk 0:00:26]} 23. Qxa8 {[%clk 0:00:44]}  Bh2+ {[%clk 0:00:26]} 24. Kg2 {[%clk 0:00:41]}  Nf4+ {[%clk 0:00:22]} 25. Kh1 {[%clk 0:00:36]} 1-0


[Site "https://www.chess.com"]

[Event "Titled Tuesday Blitz December 06 Early 2022"]
[White "Omelja, Artem"]
[Black "Pein, Jonathan"]
[WhiteFideId "14119846"]
[BlackFideId "417092"]
[WhiteElo "2404"]
[BlackElo "2225"]
[Result "0-1"]
[Round "08"]
[TimeControl "180+1"]
[Date "2022.12.07"]
[WhiteClock "0:00:01"]
[BlackClock "0:00:09"]

1. d4 {[%clk 0:03:00]}  Nf6 {[%clk 0:02:58]} 2. c4 {[%clk 0:02:59]}  g6 {[%clk 0:02:58]} 3. Nc3 {[%clk 0:02:56]}  Bg7 {[%clk 0:02:59]} 4. e4 {[%clk 0:02:56]}  O-O {[%clk 0:03:00]} 5. f3 {[%clk 0:02:56]}  Nc6 {[%clk 0:02:59]} 6. Nge2 {[%clk 0:02:54]}  e5 {[%clk 0:02:59]} 7. Be3 {[%clk 0:02:54]}  exd4 {[%clk 0:02:59]} 8. Nxd4 {[%clk 0:02:54]}  Nxd4 {[%clk 0:02:58]} 9. Bxd4 {[%clk 0:02:54]}  c6 {[%clk 0:02:59]} 10. Be2 {[%clk 0:02:13]}  d5 {[%clk 0:02:59]} 11. cxd5 {[%clk 0:02:02]}  cxd5 {[%clk 0:02:59]} 12. e5 {[%clk 0:01:34]}  Nh5 {[%clk 0:02:59]} 13. O-O {[%clk 0:01:28]}  Nf4 {[%clk 0:02:59]} 14. Bb5 {[%clk 0:01:21]}  Qg5 {[%clk 0:02:56]} 15. g3 {[%clk 0:01:18]}  Bh3 {[%clk 0:02:36]} 16. Re1 {[%clk 0:01:14]}  Nh5 {[%clk 0:02:32]} 17. Qe2 {[%clk 0:01:07]}  a6 {[%clk 0:02:26]} 18. Ba4 {[%clk 0:01:01]}  b5 {[%clk 0:02:27]} 19. Bb3 {[%clk 0:00:59]}  Rae8 {[%clk 0:02:22]} 20. Nxd5 {[%clk 0:00:54]}  Nxg3 {[%clk 0:02:22]} 21. hxg3 {[%clk 0:00:52]}  Qxg3+ {[%clk 0:02:22]} 22. Kh1 {[%clk 0:00:52]}  Bxe5 {[%clk 0:02:20]} 23. Rg1 {[%clk 0:00:36]}  Bg2+ {[%clk 0:00:36]} 24. Rxg2 {[%clk 0:00:32]}  Qh3+ {[%clk 0:00:31]} 25. Rh2 {[%clk 0:00:28]}  Bxh2 {[%clk 0:00:32]} 26. Qxh2 {[%clk 0:00:29]}  Qxf3+ {[%clk 0:00:32]} 27. Qg2 {[%clk 0:00:25]}  Qh5+ {[%clk 0:00:29]} 28. Kg1 {[%clk 0:00:23]}  Qh4 {[%clk 0:00:10]} 29. Nf6+ {[%clk 0:00:15]}  Kh8 {[%clk 0:00:10]} 30. Qg4 {[%clk 0:00:14]}  Re1+ {[%clk 0:00:10]} 31. Rxe1 {[%clk 0:00:12]}  Qxe1+ {[%clk 0:00:11]} 32. Kg2 {[%clk 0:00:12]}  Qd2+ {[%clk 0:00:10]} 33. Kh3 {[%clk 0:00:11]}  Rd8 {[%clk 0:00:09]} 34. Nd5+ {[%clk 0:00:09]}  Kg8 {[%clk 0:00:07]} 35. Qh4 {[%clk 0:00:04]}  Rxd5 {[%clk 0:00:05]} 36. Bxd5 {[%clk 0:00:03]}  Qd3+ {[%clk 0:00:06]} 37. Kg2 {[%clk 0:00:02]}  Qd2+ {[%clk 0:00:07]} 38. Qf2 {[%clk 0:00:02]}  Qg5+ {[%clk 0:00:07]} 39. Kf1 {[%clk 0:00:02]}  Qxd5 {[%clk 0:00:08]} 40. Qf6 {[%clk 0:00:02]}  Qc4+ {[%clk 0:00:08]} 41. Kg1 {[%clk 0:00:01]}  Qc2 {[%clk 0:00:09]} 0-1


[Site "https://www.chess.com"]

[Event "Titled Tuesday Blitz December 06 Early 2022"]
[White "Osiecki, Stanislaw"]
[Black "Farmani Anosheh, Armin"]
[WhiteFideId "1102990"]
[BlackFideId "24613240"]
[WhiteElo "2088"]
[BlackElo "2289"]
[Result "0-1"]
[Round "08"]
[TimeControl "180+1"]
[Date "2022.12.07"]
[WhiteClock "0:00:02"]
[BlackClock "0:00:16"]

1. e4 {[%clk 0:03:00]}  e5 {[%clk 0:02:59]} 2. Nf3 {[%clk 0:02:58]}  Nc6 {[%clk 0:03:00]} 3. Bb5 {[%clk 0:02:57]}  a6 {[%clk 0:03:00]} 4. Bxc6 {[%clk 0:02:58]}  dxc6 {[%clk 0:03:01]} 5. O-O {[%clk 0:02:58]}  Bd6 {[%clk 0:03:01]} 6. d4 {[%clk 0:02:57]}  exd4 {[%clk 0:03:02]} 7. Qxd4 {[%clk 0:02:57]}  f6 {[%clk 0:03:02]} 8. e5 {[%clk 0:02:58]}  fxe5 {[%clk 0:02:57]} 9. Nxe5 {[%clk 0:02:58]}  Ne7 {[%clk 0:02:57]} 10. Re1 {[%clk 0:02:57]}  O-O {[%clk 0:02:17]} 11. Qc4+ {[%clk 0:02:52]}  Nd5 {[%clk 0:02:14]} 12. Nc3 {[%clk 0:02:49]}  Be6 {[%clk 0:01:24]} 13. Qd4 {[%clk 0:02:15]}  Nxc3 {[%clk 0:00:38]} 14. bxc3 {[%clk 0:01:49]}  Qf6 {[%clk 0:00:30]} 15. Nf3 {[%clk 0:01:49]}  Bd5 {[%clk 0:00:26]} 16. Bg5 {[%clk 0:01:34]}  Qf7 {[%clk 0:00:18]} 17. Ne5 {[%clk 0:01:16]}  Qf5 {[%clk 0:00:18]} 18. f4 {[%clk 0:01:00]}  h6 {[%clk 0:00:18]} 19. g4 {[%clk 0:00:36]}  Qxc2 {[%clk 0:00:16]} 20. Qf2 {[%clk 0:00:12]}  Qxf2+ {[%clk 0:00:16]} 21. Kxf2 {[%clk 0:00:12]}  hxg5 {[%clk 0:00:17]} 22. Nd3 {[%clk 0:00:09]}  gxf4 {[%clk 0:00:16]} 23. Rab1 {[%clk 0:00:05]}  b5 {[%clk 0:00:17]} 24. Nb4 {[%clk 0:00:04]}  Rae8 {[%clk 0:00:17]} 25. Red1 {[%clk 0:00:02]}  f3 {[%clk 0:00:16]} 0-1


[Site "https://www.chess.com"]

[Event "Titled Tuesday Blitz December 06 Early 2022"]
[White "Osinovsky, Stepan"]
[Black "Hristodoulou, Panagiotis"]
[WhiteFideId "4157354"]
[BlackFideId "4214340"]
[WhiteElo "2222"]
[BlackElo "2272"]
[Result "1-0"]
[Round "08"]
[TimeControl "180+1"]
[Date "2022.12.07"]
[WhiteClock "0:00:35"]
[BlackClock "0:00:54"]

1. e4 {[%clk 0:02:49]}  e6 {[%clk 0:03:00]} 2. d3 {[%clk 0:02:48]}  d5 {[%clk 0:03:00]} 3. Nd2 {[%clk 0:02:49]}  Nf6 {[%clk 0:02:59]} 4. Ngf3 {[%clk 0:02:49]}  c5 {[%clk 0:03:00]} 5. g3 {[%clk 0:02:49]}  Nc6 {[%clk 0:03:00]} 6. Bg2 {[%clk 0:02:49]}  g6 {[%clk 0:03:01]} 7. O-O {[%clk 0:02:50]}  Bg7 {[%clk 0:03:01]} 8. Re1 {[%clk 0:02:49]}  O-O {[%clk 0:03:01]} 9. c3 {[%clk 0:02:50]}  a5 {[%clk 0:02:59]} 10. a4 {[%clk 0:02:49]}  b6 {[%clk 0:02:59]} 11. exd5 {[%clk 0:02:49]}  exd5 {[%clk 0:02:59]} 12. Ne5 {[%clk 0:02:35]}  Nxe5 {[%clk 0:02:54]} 13. Rxe5 {[%clk 0:02:36]}  Ra7 {[%clk 0:02:47]} 14. Nf3 {[%clk 0:02:29]}  Re7 {[%clk 0:02:46]} 15. Bf4 {[%clk 0:02:12]}  Rxe5 {[%clk 0:02:44]} 16. Bxe5 {[%clk 0:02:07]}  Re8 {[%clk 0:02:45]} 17. Qd2 {[%clk 0:02:03]}  Bf5 {[%clk 0:02:39]} 18. h3 {[%clk 0:01:55]}  Bd7 {[%clk 0:02:32]} 19. g4 {[%clk 0:01:44]}  Bc6 {[%clk 0:02:30]} 20. Qf4 {[%clk 0:01:43]}  Nd7 {[%clk 0:02:26]} 21. Bxg7 {[%clk 0:01:39]}  Kxg7 {[%clk 0:02:26]} 22. d4 {[%clk 0:01:31]}  Re4 {[%clk 0:02:11]} 23. Qd6 {[%clk 0:01:08]}  Re6 {[%clk 0:02:10]} 24. Qf4 {[%clk 0:01:08]}  h6 {[%clk 0:02:08]} 25. dxc5 {[%clk 0:01:07]}  bxc5 {[%clk 0:02:09]} 26. b4 {[%clk 0:00:52]}  d4 {[%clk 0:01:34]} 27. bxc5 {[%clk 0:00:46]}  Bxf3 {[%clk 0:01:28]} 28. Qxd4+ {[%clk 0:00:41]}  Qf6 {[%clk 0:01:21]} 29. Bxf3 {[%clk 0:00:41]}  Ne5 {[%clk 0:01:18]} 30. Bg2 {[%clk 0:00:39]}  h5 {[%clk 0:01:09]} 31. g5 {[%clk 0:00:34]}  Qxg5 {[%clk 0:00:54]} 32. f4 {[%clk 0:00:35]} 1-0


[Site "https://www.chess.com"]

[Event "Titled Tuesday Blitz December 06 Early 2022"]
[White "Ovchinnikov, Vsevolod"]
[Black "Tarlabasi, Emirhan"]
[WhiteFideId "24176842"]
[BlackFideId "6350275"]
[WhiteElo "2376"]
[BlackElo "2200"]
[Result "1/2-1/2"]
[Round "08"]
[TimeControl "180+1"]
[Date "2022.12.07"]
[WhiteClock "0:00:30"]
[BlackClock "0:01:30"]

1. d4 {[%clk 0:03:00]}  c5 {[%clk 0:03:00]} 2. d5 {[%clk 0:03:01]}  e6 {[%clk 0:03:01]} 3. c4 {[%clk 0:03:01]}  exd5 {[%clk 0:03:01]} 4. cxd5 {[%clk 0:03:02]}  d6 {[%clk 0:03:02]} 5. Nc3 {[%clk 0:03:02]}  Nf6 {[%clk 0:03:03]} 6. Nf3 {[%clk 0:03:01]}  g6 {[%clk 0:03:03]} 7. Nd2 {[%clk 0:03:01]}  a6 {[%clk 0:02:49]} 8. a4 {[%clk 0:03:00]}  Bg7 {[%clk 0:02:47]} 9. e4 {[%clk 0:03:00]}  O-O {[%clk 0:02:44]} 10. Be2 {[%clk 0:03:01]}  Nbd7 {[%clk 0:02:42]} 11. O-O {[%clk 0:03:00]}  Re8 {[%clk 0:02:40]} 12. a5 {[%clk 0:02:59]}  Rb8 {[%clk 0:02:36]} 13. Ra3 {[%clk 0:02:54]}  b5 {[%clk 0:02:32]} 14. axb6 {[%clk 0:02:54]}  Nxb6 {[%clk 0:02:33]} 15. Bxa6 {[%clk 0:02:49]}  Bxa6 {[%clk 0:02:26]} 16. Rxa6 {[%clk 0:02:50]}  Qc7 {[%clk 0:02:23]} 17. Qc2 {[%clk 0:02:36]}  Nfd7 {[%clk 0:02:04]} 18. Nb5 {[%clk 0:02:05]}  Qc8 {[%clk 0:02:04]} 19. Ra3 {[%clk 0:01:13]}  Bf8 {[%clk 0:02:04]} 20. Na7 {[%clk 0:01:08]}  Qc7 {[%clk 0:01:57]} 21. Nc6 {[%clk 0:01:07]}  Ra8 {[%clk 0:01:56]} 22. f3 {[%clk 0:00:58]}  Nb8 {[%clk 0:01:36]} 23. Rxa8 {[%clk 0:00:35]}  Nxa8 {[%clk 0:01:37]} 24. Nxb8 {[%clk 0:00:35]}  Rxb8 {[%clk 0:01:38]} 25. Nc4 {[%clk 0:00:30]}  Nb6 {[%clk 0:01:34]} 26. b3 {[%clk 0:00:29]}  Nxc4 {[%clk 0:01:29]} 27. bxc4 {[%clk 0:00:30]}  Bg7 {[%clk 0:01:30]} 1/2-1/2


[Site "https://www.chess.com"]

[Event "Titled Tuesday Blitz December 06 Early 2022"]
[White "Papasimakopoulos, Alexandros"]
[Black "Alex_Sahakyan2006"]
[WhiteFideId "4244125"]
[WhiteElo "2384"]
[BlackElo "2587"]
[Result "0-1"]
[Round "08"]
[TimeControl "180+1"]
[Date "2022.12.07"]
[WhiteClock "0:00:52"]
[BlackClock "0:02:03"]

1. d4 {[%clk 0:02:56]}  Nf6 {[%clk 0:03:00]} 2. c4 {[%clk 0:02:54]}  c5 {[%clk 0:02:59]} 3. d5 {[%clk 0:02:54]}  b5 {[%clk 0:02:59]} 4. Nf3 {[%clk 0:02:54]}  g6 {[%clk 0:02:58]} 5. cxb5 {[%clk 0:02:54]}  a6 {[%clk 0:02:58]} 6. e3 {[%clk 0:02:54]}  axb5 {[%clk 0:02:54]} 7. Bxb5 {[%clk 0:02:53]}  Qa5+ {[%clk 0:02:55]} 8. Nc3 {[%clk 0:02:53]}  Ne4 {[%clk 0:02:52]} 9. a4 {[%clk 0:02:34]}  Nxc3 {[%clk 0:02:51]} 10. bxc3 {[%clk 0:02:33]}  Qxc3+ {[%clk 0:02:51]} 11. Bd2 {[%clk 0:02:33]}  Qf6 {[%clk 0:02:52]} 12. e4 {[%clk 0:02:31]}  Bg7 {[%clk 0:02:48]} 13. O-O {[%clk 0:02:21]}  Qxa1 {[%clk 0:02:41]} 14. Qxa1 {[%clk 0:02:20]}  Bxa1 {[%clk 0:02:42]} 15. Rxa1 {[%clk 0:02:20]}  O-O {[%clk 0:02:42]} 16. e5 {[%clk 0:02:16]}  Ba6 {[%clk 0:02:41]} 17. Rb1 {[%clk 0:02:13]}  Bxb5 {[%clk 0:02:40]} 18. axb5 {[%clk 0:02:14]}  d6 {[%clk 0:02:38]} 19. Bf4 {[%clk 0:02:10]}  Ra4 {[%clk 0:02:37]} 20. g3 {[%clk 0:02:03]}  dxe5 {[%clk 0:02:30]} 21. Nxe5 {[%clk 0:01:59]}  Rb4 {[%clk 0:02:28]} 22. Rc1 {[%clk 0:01:59]}  Rxb5 {[%clk 0:02:28]} 23. Nc6 {[%clk 0:01:59]}  Nxc6 {[%clk 0:02:27]} 24. dxc6 {[%clk 0:02:00]}  Rc8 {[%clk 0:02:28]} 25. Re1 {[%clk 0:01:48]}  Rxc6 {[%clk 0:02:22]} 26. Rxe7 {[%clk 0:01:47]}  Rc8 {[%clk 0:02:23]} 27. Be5 {[%clk 0:01:44]}  Rb1+ {[%clk 0:02:16]} 28. Kg2 {[%clk 0:01:43]}  Re1 {[%clk 0:02:16]} 29. f4 {[%clk 0:01:34]}  c4 {[%clk 0:02:16]} 30. Kf2 {[%clk 0:01:34]}  Rh1 {[%clk 0:02:08]} 31. Kg2 {[%clk 0:01:33]}  Rd1 {[%clk 0:02:07]} 32. Bc3 {[%clk 0:00:53]}  Rd3 {[%clk 0:02:06]} 33. Bf6 {[%clk 0:00:52]}  c3 {[%clk 0:02:03]} 34. Rc7 {[%clk 0:00:52]}  Rxc7 {[%clk 0:02:03]} 0-1


[Site "https://www.chess.com"]

[Event "Titled Tuesday Blitz December 06 Early 2022"]
[White "Piesik, Piotr"]
[Black "Gong, Qianyun"]
[WhiteFideId "1136194"]
[BlackFideId "8602425"]
[WhiteElo "2316"]
[BlackElo "2199"]
[Result "1-0"]
[Round "08"]
[TimeControl "180+1"]
[Date "2022.12.07"]
[WhiteClock "0:01:40"]
[BlackClock "0:01:01"]

1. Nf3 {[%clk 0:03:00]}  d5 {[%clk 0:02:59]} 2. g3 {[%clk 0:03:01]}  Nf6 {[%clk 0:02:59]} 3. Bg2 {[%clk 0:03:01]}  c6 {[%clk 0:02:59]} 4. O-O {[%clk 0:03:02]}  Nbd7 {[%clk 0:02:58]} 5. d3 {[%clk 0:03:02]}  e5 {[%clk 0:02:58]} 6. Nbd2 {[%clk 0:03:02]}  Bd6 {[%clk 0:02:57]} 7. e4 {[%clk 0:03:02]}  O-O {[%clk 0:02:56]} 8. Qe2 {[%clk 0:02:59]}  Re8 {[%clk 0:02:56]} 9. Nb3 {[%clk 0:02:58]}  h6 {[%clk 0:02:55]} 10. a4 {[%clk 0:02:56]}  a5 {[%clk 0:02:50]} 11. Bd2 {[%clk 0:02:54]}  b6 {[%clk 0:02:43]} 12. Rfd1 {[%clk 0:02:53]}  Ba6 {[%clk 0:02:42]} 13. Qe1 {[%clk 0:02:53]}  Qc7 {[%clk 0:02:31]} 14. Nh4 {[%clk 0:02:53]}  Bf8 {[%clk 0:02:28]} 15. Nf5 {[%clk 0:02:52]}  Kh7 {[%clk 0:02:20]} 16. h3 {[%clk 0:02:47]}  g6 {[%clk 0:02:18]} 17. Ne3 {[%clk 0:02:47]}  d4 {[%clk 0:02:11]} 18. Ng4 {[%clk 0:02:47]}  Bg7 {[%clk 0:02:03]} 19. f4 {[%clk 0:02:43]}  Nxg4 {[%clk 0:02:00]} 20. hxg4 {[%clk 0:02:41]}  exf4 {[%clk 0:02:00]} 21. gxf4 {[%clk 0:02:42]}  c5 {[%clk 0:01:54]} 22. e5 {[%clk 0:02:37]}  Bb7 {[%clk 0:01:54]} 23. Qf1 {[%clk 0:02:32]}  Rad8 {[%clk 0:01:43]} 24. Re1 {[%clk 0:02:26]}  Nf8 {[%clk 0:01:35]} 25. Bxb7 {[%clk 0:02:21]}  Qxb7 {[%clk 0:01:36]} 26. Qg2 {[%clk 0:02:21]}  Qd7 {[%clk 0:01:34]} 27. Re4 {[%clk 0:02:18]}  f5 {[%clk 0:01:28]} 28. exf6 {[%clk 0:02:07]}  Bxf6 {[%clk 0:01:28]} 29. Rae1 {[%clk 0:02:04]}  Bg7 {[%clk 0:01:26]} 30. f5 {[%clk 0:01:58]}  gxf5 {[%clk 0:01:22]} 31. gxf5 {[%clk 0:01:59]}  Qf7 {[%clk 0:01:17]} 32. Bf4 {[%clk 0:01:52]}  Bf6 {[%clk 0:01:06]} 33. Nd2 {[%clk 0:01:48]}  Nd7 {[%clk 0:01:00]} 34. Qg6+ {[%clk 0:01:39]}  Qxg6+ {[%clk 0:01:00]} 35. fxg6+ {[%clk 0:01:40]}  Kxg6 {[%clk 0:01:01]} 36. Rxe8 {[%clk 0:01:40]} 1-0


[Site "https://www.chess.com"]

[Event "Titled Tuesday Blitz December 06 Early 2022"]
[White "Przybylski, Wojciech"]
[Black "Fabris, Alberto"]
[WhiteFideId "1117599"]
[BlackFideId "801348"]
[WhiteElo "2217"]
[BlackElo "2196"]
[Result "1-0"]
[Round "08"]
[TimeControl "180+1"]
[Date "2022.12.07"]
[WhiteClock "0:00:28"]
[BlackClock "0:00:07"]

1. e4 {[%clk 0:02:38]}  c5 {[%clk 0:02:59]} 2. Nf3 {[%clk 0:02:37]}  d6 {[%clk 0:02:59]} 3. Bb5+ {[%clk 0:02:35]}  Nd7 {[%clk 0:02:58]} 4. Ba4 {[%clk 0:02:34]}  g6 {[%clk 0:02:57]} 5. O-O {[%clk 0:02:33]}  Bg7 {[%clk 0:02:57]} 6. c3 {[%clk 0:02:33]}  Nf6 {[%clk 0:02:50]} 7. Re1 {[%clk 0:02:32]}  O-O {[%clk 0:02:49]} 8. h3 {[%clk 0:02:29]}  a6 {[%clk 0:02:48]} 9. d3 {[%clk 0:02:24]}  b5 {[%clk 0:02:47]} 10. Bc2 {[%clk 0:02:24]}  Bb7 {[%clk 0:02:47]} 11. Nbd2 {[%clk 0:02:22]}  Nb6 {[%clk 0:02:44]} 12. Nf1 {[%clk 0:02:20]}  Rc8 {[%clk 0:02:39]} 13. g4 {[%clk 0:02:13]}  d5 {[%clk 0:02:36]} 14. e5 {[%clk 0:02:07]}  Ne8 {[%clk 0:02:36]} 15. d4 {[%clk 0:02:06]}  cxd4 {[%clk 0:02:34]} 16. Nxd4 {[%clk 0:02:06]}  e6 {[%clk 0:02:29]} 17. f4 {[%clk 0:02:01]}  Qh4 {[%clk 0:02:26]} 18. Kg2 {[%clk 0:01:58]}  Nc7 {[%clk 0:02:12]} 19. Ng3 {[%clk 0:01:57]}  f6 {[%clk 0:02:06]} 20. Nf3 {[%clk 0:01:33]}  Qh6 {[%clk 0:02:05]} 21. g5 {[%clk 0:01:30]}  fxg5 {[%clk 0:02:03]} 22. fxg5 {[%clk 0:01:30]}  Rxf3 {[%clk 0:01:19]} 23. gxh6 {[%clk 0:01:24]}  d4 {[%clk 0:01:17]} 24. Qxf3 {[%clk 0:01:17]}  Bxf3+ {[%clk 0:01:16]} 25. Kxf3 {[%clk 0:01:18]}  Rf8+ {[%clk 0:01:07]} 26. Kg2 {[%clk 0:01:12]}  Bh8 {[%clk 0:01:03]} 27. cxd4 {[%clk 0:01:09]}  Ncd5 {[%clk 0:01:02]} 28. Bb3 {[%clk 0:01:08]}  a5 {[%clk 0:00:47]} 29. a3 {[%clk 0:01:07]}  a4 {[%clk 0:00:47]} 30. Ba2 {[%clk 0:01:06]}  Nc4 {[%clk 0:00:46]} 31. Bxc4 {[%clk 0:01:00]}  bxc4 {[%clk 0:00:46]} 32. Bd2 {[%clk 0:01:01]}  Rb8 {[%clk 0:00:41]} 33. Rab1 {[%clk 0:00:44]}  Rb3 {[%clk 0:00:26]} 34. Ne4 {[%clk 0:00:41]}  Kf8 {[%clk 0:00:17]} 35. Rf1+ {[%clk 0:00:38]}  Ke7 {[%clk 0:00:16]} 36. Rf3 {[%clk 0:00:39]}  Rb8 {[%clk 0:00:13]} 37. Bc3 {[%clk 0:00:32]}  Rc8 {[%clk 0:00:08]} 38. Rbf1 {[%clk 0:00:31]}  Kd7 {[%clk 0:00:08]} 39. Kg3 {[%clk 0:00:29]}  Kc6 {[%clk 0:00:07]} 40. Rf8 {[%clk 0:00:28]} 1-0


[Site "https://www.chess.com"]

[Event "Titled Tuesday Blitz December 06 Early 2022"]
[White "Quinones Garcia, Santiago"]
[Black "Sztokbant, Bernardo Vainzoff"]
[WhiteFideId "4408497"]
[BlackFideId "2115956"]
[WhiteElo "2249"]
[BlackElo "2222"]
[Result "1-0"]
[Round "08"]
[TimeControl "180+1"]
[Date "2022.12.07"]
[WhiteClock "0:00:03"]
[BlackClock "0:00:01"]

1. e4 {[%clk 0:01:08]}  c5 {[%clk 0:02:59]} 2. Nf3 {[%clk 0:01:09]}  Nc6 {[%clk 0:02:59]} 3. d4 {[%clk 0:01:09]}  cxd4 {[%clk 0:03:00]} 4. Nxd4 {[%clk 0:01:10]}  Nf6 {[%clk 0:03:00]} 5. Nc3 {[%clk 0:01:10]}  e5 {[%clk 0:03:01]} 6. Ndb5 {[%clk 0:01:11]}  d6 {[%clk 0:03:01]} 7. Bg5 {[%clk 0:01:10]}  a6 {[%clk 0:03:00]} 8. Na3 {[%clk 0:01:10]}  b5 {[%clk 0:03:00]} 9. Nd5 {[%clk 0:01:11]}  Be7 {[%clk 0:03:00]} 10. Bxf6 {[%clk 0:01:11]}  Bxf6 {[%clk 0:03:01]} 11. c3 {[%clk 0:01:11]}  O-O {[%clk 0:03:01]} 12. g3 {[%clk 0:01:10]}  Be6 {[%clk 0:02:53]} 13. h4 {[%clk 0:01:09]}  Rb8 {[%clk 0:02:46]} 14. Nc2 {[%clk 0:01:07]}  Be7 {[%clk 0:02:46]} 15. Bh3 {[%clk 0:01:06]}  a5 {[%clk 0:02:44]} 16. Nce3 {[%clk 0:01:05]}  b4 {[%clk 0:02:41]} 17. c4 {[%clk 0:01:05]}  Nd4 {[%clk 0:02:40]} 18. b3 {[%clk 0:01:00]}  Rc8 {[%clk 0:02:37]} 19. Rc1 {[%clk 0:01:00]}  Kh8 {[%clk 0:02:34]} 20. Kf1 {[%clk 0:01:00]}  Qd7 {[%clk 0:02:29]} 21. Kg2 {[%clk 0:00:58]}  Rc5 {[%clk 0:02:22]} 22. Nc2 {[%clk 0:00:50]}  Nc6 {[%clk 0:02:15]} 23. Qd2 {[%clk 0:00:43]}  Bd8 {[%clk 0:02:04]} 24. Rcd1 {[%clk 0:00:42]}  f5 {[%clk 0:01:57]} 25. exf5 {[%clk 0:00:33]}  Bxf5 {[%clk 0:01:56]} 26. Bxf5 {[%clk 0:00:32]}  Qxf5 {[%clk 0:01:57]} 27. Qe2 {[%clk 0:00:25]}  e4 {[%clk 0:01:50]} 28. Nf4 {[%clk 0:00:20]}  Qe5 {[%clk 0:01:33]} 29. Qd2 {[%clk 0:00:20]}  Be7 {[%clk 0:01:18]} 30. Ne3 {[%clk 0:00:20]}  Rxf4 {[%clk 0:01:16]} 31. gxf4 {[%clk 0:00:20]}  Qxf4 {[%clk 0:01:16]} 32. Nd5 {[%clk 0:00:20]}  Qg4+ {[%clk 0:01:06]} 33. Kf1 {[%clk 0:00:20]}  Bxh4 {[%clk 0:00:49]} 34. Ne3 {[%clk 0:00:20]}  Qf4 {[%clk 0:00:34]} 35. Rxh4 {[%clk 0:00:17]}  Qxh4 {[%clk 0:00:30]} 36. Qxd6 {[%clk 0:00:18]}  Qh1+ {[%clk 0:00:15]} 37. Ke2 {[%clk 0:00:17]}  Qh5+ {[%clk 0:00:15]} 38. Ke1 {[%clk 0:00:17]}  h6 {[%clk 0:00:14]} 39. Qf8+ {[%clk 0:00:13]}  Kh7 {[%clk 0:00:14]} 40. Rd7 {[%clk 0:00:14]}  Rg5 {[%clk 0:00:09]} 41. Nf5 {[%clk 0:00:12]}  Qh1+ {[%clk 0:00:08]} 42. Kd2 {[%clk 0:00:11]}  Qg2 {[%clk 0:00:06]} 43. Ne7 {[%clk 0:00:04]}  Nxe7 {[%clk 0:00:03]} 44. Rxe7 {[%clk 0:00:04]}  e3+ {[%clk 0:00:02]} 45. Rxe3 {[%clk 0:00:04]}  h5 {[%clk 0:00:01]} 46. Re8 {[%clk 0:00:04]}  Kh6 {[%clk 0:00:01]} 47. Qh8+ {[%clk 0:00:04]}  Kg6 {[%clk 0:00:01]} 48. Re6+ {[%clk 0:00:04]}  Kf5 {[%clk 0:00:01]} 49. Re3 {[%clk 0:00:03]}  Qxf2+ {[%clk 0:00:01]} 50. Kd3 {[%clk 0:00:03]}  Qf1+ {[%clk 0:00:01]} 51. Kd4 {[%clk 0:00:03]}  Rg4+ {[%clk 0:00:01]} 52. Kc5 {[%clk 0:00:03]} 1-0


[Site "https://www.chess.com"]